bitfinex/quotes_ETHUSD_20240729
["timestamp","ask_amount","ask_price","bid_price","bid_amount"]
[1722253344297,2.3763,3388.3,3387.1,2.75293772]
[1722253344298,2.361,3388.4,3387.4,2.4286]
[1722253344649,4.74998,3388.6,3387.3,0.576432]
[1722253344650,2.36088,3388.6,3387.6,2.4729]
[1722253344854,2.66924582,3388.7,3387.7,0.0590286]
[1722253344999,2.66924582,3388.7,3387.8,2.4948]
[1722253345000,3.21482097,3388.6,3387.8,2.4948]
[1722253345194,0.85396097,3388.6,3387.9,0.0590265]
[1722253345745,2.36078,3388.7,3387.9,0.0590265]
[1722253345897,1.12052386,3388.9,3387.9,0.0590265]
[1722253345898,3.48122386,3388.9,3387.9,0.0590265]
[1722253346094,3.48122386,3388.9,3387.8,2.4948]
[1722253346095,1.12052386,3388.9,3388.0,2.3435]
[1722253346299,3.48117386,3388.9,3388.1,0.0590207]
[1722253346529,4.32815558,3388.9,3388.0,2.3435]
[1722253347270,4.32815558,3388.9,3388.1,0.05902075]
[1722253347467,4.32815558,3388.9,3388.0,2.3435]
[1722253348138,3.0,3388.8,3388.0,2.3435]
[1722253348350,3.0,3389.0,3388.0,2.3435]
[1722253348545,0.30839333,3389.1,3388.0,2.3435]
[1722253348770,2.36077,3388.8,3388.0,2.3435]
[1722253348971,5.36077,3388.8,3388.0,2.3435]
[1722253349279,2.36078,3388.7,3388.0,2.3435]
[1722253349575,3.0,3388.7,3388.0,2.3435]
[1722253350067,3.0,3389.0,3388.0,2.3435]
[1722253350372,3.0,3389.0,3388.1,1.199484]
[1722253350751,5.36062,3389.0,3388.1,1.199484]
[1722253351778,2.36064,3388.9,3388.1,1.199484]
[1722253353079,3.0,3389.0,3388.2,2.3114]
[1722253353398,3.0,3389.0,3388.3,0.3510884]
[1722253354587,2.36065,3388.9,3388.3,0.3510884]
[1722253355860,3.0,3389.0,3388.3,0.3510884]
[1722253356690,5.36058,3389.0,3388.3,0.3510884]
[1722253357485,2.36065,3388.9,3388.3,0.3510884]
[1722253357687,2.36065,3388.9,3388.2,2.3114]
[1722253364298,6.4295,3389.1,3388.2,2.3114]
[1722253364499,5.3605,3389.1,3388.2,2.3114]
[1722253364797,3.0,3389.0,3388.2,2.3114]
[1722253365093,2.3605,3389.1,3388.2,2.3114]
[1722253365700,2.36059,3389.0,3388.2,2.3114]
[1722253366001,5.36059,3389.0,3388.2,2.3114]
[1722253366356,2.36065,3388.9,3388.2,2.3114]
[1722253366663,5.36065,3388.9,3388.2,2.3114]
[1722253367102,2.36065,3388.9,3388.2,2.3114]
[1722253367815,3.0,3389.0,3388.2,2.3114]
[1722253368022,2.36058,3389.0,3388.3,2.4963]
[1722253368312,5.36058,3389.0,3388.3,3.5653]
[1722253368473,2.36058,3389.0,3388.3,3.5653]
[1722253368876,2.36058,3389.0,3388.4,2.4459]
[1722253369520,5.3605,3389.2,3388.5,1.069]
[1722253369826,5.36051,3389.1,3388.4,2.4459]
[1722253370814,5.36051,3389.1,3388.5,1.069]
[1722253370987,2.36051,3389.1,3388.5,1.069]
[1722253373203,3.0,3389.3,3388.7,1.069]
[1722253373524,3.0,3389.4,3388.7,1.069]
[1722253373816,0.84302784,3389.4,3388.7,1.069]
[1722253374123,3.20333784,3389.4,3388.8,2.3462]
[1722253374323,3.0,3389.3,3388.8,2.3462]
[1722253374826,5.36037,3389.3,3388.8,2.3462]
[1722253375710,3.0,3389.3,3388.8,2.3462]
[1722253376026,3.20333784,3389.4,3388.8,2.3462]
[1722253376198,3.0,3389.3,3388.8,2.3462]
[1722253377226,2.36031,3389.4,3388.8,2.3462]
[1722253379731,2.36037,3389.3,3388.8,2.3462]
[1722253379885,5.36037,3389.3,3388.8,2.3462]
[1722253380286,3.0,3389.2,3388.8,2.3462]
[1722253380599,2.36037,3389.3,3388.8,2.3462]
[1722253388543,3.0,3389.4,3388.8,2.3462]
[1722253388723,2.36025,3389.5,3388.9,1.069]
[1722253389039,2.36025,3389.5,3388.9,2.255]
[1722253390638,2.3603,3389.4,3388.9,2.255]
[1722253390793,5.3603,3389.4,3388.9,2.255]
[1722253391700,2.3603,3389.4,3388.9,2.255]
[1722253391931,3.0,3389.3,3388.9,2.255]
[1722253392224,2.3603,3389.4,3388.9,2.255]
[1722253392431,2.36037,3389.3,3388.9,2.255]
[1722253392587,2.36044,3389.2,3388.5,8.359]
[1722253392794,2.36055,3389.1,3388.6,2.3707]
[1722253393025,2.36041,3389.3,3388.6,2.3707]
[1722253393405,5.36041,3389.3,3388.6,2.3707]
[1722253393834,2.36045,3389.2,3388.6,2.3707]
[1722253396403,2.36045,3389.2,3388.6,3.44367]
[1722253396835,2.36073,3388.8,3388.5,7.29]
[1722253397036,2.36079,3388.7,3388.5,7.29]
[1722253397364,2.36079,3388.7,3388.2,2.3337]
[1722253397567,2.36086,3388.6,3388.2,2.3337]
[1722253399537,2.361,3388.4,3388.2,2.3337]
[1722253400253,2.361,3388.4,3388.0,7.29]
[1722253400577,2.36118,3388.2,3388.0,7.29]
[1722253400778,2.36118,3388.2,3387.7,2.4934]
[1722253400931,2.36121,3388.1,3387.7,2.4934]
[1722253403057,2.36111,3388.3,3387.7,2.4934]
[1722253404050,2.3301,3388.5,3387.7,2.4934]
[1722253404404,3.0,3388.5,3388.0,2.3435]
[1722253404755,2.36093,3388.5,3388.0,2.3435]
[1722253405007,5.36093,3388.5,3388.0,2.3435]
[1722253405754,2.36102,3388.4,3388.0,2.3435]
[1722253411380,3.0,3388.5,3388.0,2.3435]
[1722253411588,3.43006,3388.3,3387.7,2.3519]
[1722253411768,2.36124,3388.1,3387.7,2.3519]
[1722253412595,2.317,3388.4,3387.6,7.29]
[1722253412596,3.43036,3387.9,3387.6,7.29]
[1722253412757,0.343036,3387.8,3387.6,7.29]
[1722253412953,2.36145,3387.8,3387.6,7.29]
[1722253415431,2.36123,3388.1,3387.6,7.29]
[1722253415432,2.36132,3388.0,3387.6,7.29]
[1722253417449,2.36135,3387.9,3387.4,2.3519]
[1722253418704,2.36126,3388.1,3387.4,2.3519]
[1722253419214,5.36113,3388.2,3387.4,3.48202645]
[1722253419550,2.36113,3388.2,3387.4,3.48202645]
[1722253419943,2.36113,3388.2,3387.5,2.2996]
[1722253420146,3.0,3388.3,3387.8,1.069]
[1722253420349,3.0,3388.3,3387.6,2.55353376]
[1722253420350,2.36096,3388.5,3387.9,2.4945]
[1722253420858,5.36096,3388.5,3387.9,2.4945]
[1722253421165,2.4919,3388.4,3387.2,9.6875]
[1722253421448,2.36125,3388.1,3387.2,9.6875]
[1722253421610,3.0,3388.1,3387.6,2.3975]
[1722253421823,3.0,3388.3,3387.7,0.05903062]
[1722253422053,2.36099,3388.4,3387.7,0.05903062]
[1722253423126,2.36099,3388.4,3387.8,2.4962]
[1722253427135,3.0,3388.5,3387.8,2.4962]
[1722253427324,3.42986,3388.6,3387.8,2.4962]
[1722253427823,3.0,3388.5,3387.8,2.4962]
[1722253428221,5.36092,3388.5,3387.8,2.4962]
[1722253431145,2.36101,3388.4,3387.8,2.4962]
[1722253432533,2.3612,3388.1,3387.8,2.4962]
[1722253432770,5.3612,3388.1,3387.8,2.4962]
[1722253433581,2.3612,3388.1,3387.8,2.4962]
[1722253434324,4.72245,3388.1,3387.3,2.2958]
[1722253434465,4.72245,3388.1,3387.3,4.57328]
[1722253434466,3.0,3388.0,3387.3,4.57328]
[1722253434658,4.72247,3388.1,3387.3,4.57328]
[1722253434862,3.0,3388.0,3387.3,4.57328]
[1722253436177,3.0,3388.0,3387.3,2.2958]
[1722253436486,2.3612,3388.1,3387.3,2.2958]
[1722253441068,2.36127,3388.0,3387.3,2.2958]
[1722253441404,3.0,3388.0,3387.3,2.2958]
[1722253441568,2.36137,3387.9,3387.3,2.2958]
[1722253442611,1.13437419,3387.9,3387.3,2.2958]
[1722253442777,3.49572419,3387.9,3387.3,2.2958]
[1722253443115,2.36148,3387.7,3387.3,2.2958]
[1722253443467,5.36142,3387.8,3387.3,2.2958]
[1722253443807,3.0,3387.8,3387.3,2.2958]
[1722253445676,3.0,3387.9,3387.4,2.3997]
[1722253446210,3.0,3388.0,3387.4,2.3997]
[1722253446591,3.0,3388.0,3387.5,2.318]
[1722253446841,3.0,3388.0,3387.6,1.069]
[1722253447110,3.0,3388.1,3387.5,2.318]
[1722253448922,4.91705457,3388.2,3387.5,2.318]
[1722253449416,3.0,3388.1,3387.5,2.318]
[1722253449589,3.0,3388.1,3387.5,2.37703438]
[1722253449911,3.0,3388.1,3387.5,3.45063782]
[1722253450111,3.0,3388.2,3387.5,3.45063782]
[1722253450318,3.0,3388.2,3387.7,2.3066]
[1722253451277,5.36114,3388.2,3387.7,2.3066]
[1722253451479,2.3612,3388.1,3387.7,2.3066]
[1722253452527,5.36117,3388.2,3387.7,2.3066]
[1722253452680,7.91781669,3388.2,3387.7,2.3066]
[1722253453013,2.36121,3388.1,3387.7,2.3066]
[1722253453230,5.55664669,3388.2,3387.7,2.3066]
[1722253455233,3.0,3388.2,3387.7,2.3066]
[1722253455528,3.0,3388.2,3387.7,2.64416]
[1722253455826,2.55710762,3388.4,3387.7,2.64416]
[1722253455827,3.0,3388.3,3387.7,2.64416]
[1722253456035,3.0,3388.3,3387.7,2.3066]
[1722253457020,3.0,3388.3,3387.8,1.069]
[1722253457195,3.0,3388.3,3387.3,2.3617]
[1722253457196,3.0,3388.3,3387.9,2.3808]
[1722253457413,3.0,3388.4,3387.9,2.3808]
[1722253457917,5.55710762,3388.4,3387.9,2.3808]
[1722253458092,7.91809762,3388.4,3387.9,2.3808]
[1722253458292,7.91809762,3388.4,3387.2,7.29]
[1722253458293,2.36107,3388.3,3387.7,2.4962]
[1722253458936,4.91847158,3388.3,3387.7,2.4962]
[1722253459146,3.0,3388.2,3387.7,2.4962]
[1722253459509,5.36107,3388.3,3387.7,2.4962]
[1722253459913,7.91847158,3388.3,3387.7,2.4962]
[1722253460227,6.60400261,3388.3,3387.7,2.4962]
[1722253460436,9.16140419,3388.3,3387.7,2.4962]
[1722253460748,6.60400261,3388.3,3387.7,2.4962]
[1722253460943,9.16140419,3388.3,3387.7,2.4962]
[1722253461118,5.36107,3388.3,3387.7,2.4962]
[1722253462507,3.0,3388.3,3387.7,2.4962]
[1722253464900,5.36108,3388.3,3387.7,2.4962]
[1722253465243,7.92116658,3388.3,3387.7,2.4962]
[1722253466021,2.36114,3388.2,3387.7,2.4962]
[1722253466319,2.36121,3388.1,3387.7,2.4962]
[1722253466743,4.02823066,3388.2,3387.7,2.4962]
[1722253467460,6.58831724,3388.2,3387.7,2.4962]
[1722253468258,6.58802872,3388.2,3387.7,2.4962]
[1722253468556,8.94920458,3388.2,3387.7,2.4962]
[1722253471552,8.94920268,3388.2,3387.7,2.4962]
[1722253472144,8.94859742,3388.2,3387.7,2.4962]
[1722253474219,5.36114,3388.2,3387.7,2.4962]
[1722253474419,4.91961315,3388.2,3387.7,2.4962]
[1722253474623,2.36114,3388.2,3387.7,2.4962]
[1722253474825,4.91966452,3388.2,3387.7,2.4962]
[1722253476051,2.36114,3388.2,3387.7,2.4962]
[1722253476272,4.91961961,3388.2,3387.7,2.4962]
[1722253478066,2.36114,3388.2,3387.7,2.4962]
[1722253478225,4.91980843,3388.2,3387.7,2.4962]
[1722253478425,6.36047069,3388.2,3387.7,2.4962]
[1722253479555,8.72166069,3388.2,3387.7,2.4962]
[1722253479723,2.36122,3388.1,3387.7,2.4962]
[1722253482734,2.36122,3388.1,3387.4,2.3865]
[1722253487353,2.55848782,3388.2,3387.4,2.3865]
[1722253487556,2.36114,3388.2,3387.5,1.07455]
[1722253487871,2.36114,3388.2,3387.6,2.3158]
[1722253488170,2.36121,3388.1,3387.6,2.3158]
[1722253489377,2.36128,3388.0,3387.6,2.3158]
[1722253494252,2.36128,3388.0,3387.3,2.3239]
[1722253494253,4.02820732,3388.0,3387.3,2.3239]
[1722253494451,2.55966319,3387.9,3387.3,2.3239]
[1722253494670,4.02820732,3388.0,3387.3,2.3239]
[1722253494975,2.55956134,3387.8,3387.3,2.3239]
[1722253495338,4.92103134,3387.8,3387.3,2.3239]
[1722253496144,2.36156,3387.6,3387.3,2.3239]
[1722253496985,2.3616,3387.6,3387.3,2.3239]
[1722253497141,2.36163,3387.5,3387.3,2.3239]
[1722253497342,2.36163,3387.5,3387.0,2.3847]
[1722253498289,2.5587875,3387.8,3387.3,1.069]
[1722253498580,3.0,3387.7,3387.4,2.4014]
[1722253498992,3.0,3387.8,3387.4,2.4014]
[1722253499361,3.0,3387.9,3387.4,2.4014]
[1722253499548,5.5587875,3387.9,3387.4,2.4014]
[1722253500778,7.9201375,3387.9,3387.4,2.4014]
[1722253500989,5.94793833,3387.8,3387.4,2.4014]
[1722253501358,3.0,3387.7,3387.4,2.4014]
[1722253501744,3.0,3387.7,3386.8,7.29]
[1722253501745,2.36156,3387.6,3387.1,2.2996]
[1722253502987,2.36162,3387.5,3387.1,2.2996]
[1722253503394,7.92049136,3387.7,3387.1,2.2996]
[1722253503600,2.36162,3387.5,3387.1,2.2996]
[1722253504334,10.28062277,3387.7,3387.1,2.2996]
[1722253504602,2.36155,3387.6,3387.1,2.2996]
[1722253504808,7.91909277,3387.7,3387.1,2.2996]
[1722253504809,2.36163,3387.5,3387.1,2.2996]
[1722253509119,5.36149,3387.7,3387.1,2.2996]
[1722253509613,3.0,3387.7,3387.2,1.069]
[1722253509967,4.02814175,3387.8,3387.2,1.069]
[1722253510513,6.38961175,3387.8,3387.2,1.069]
[1722253511094,2.36152,3387.7,3387.2,1.069]
[1722253511416,5.36152,3387.7,3387.2,1.069]
[1722253512042,7.72307,3387.7,3387.2,1.069]
[1722253512191,7.72307,3387.7,3387.1,2.2996]
[1722253512393,2.36155,3387.6,3387.1,2.2996]
[1722253512592,5.36155,3387.6,3387.1,2.2996]
[1722253513134,2.36155,3387.6,3387.1,2.2996]
[1722253516504,2.36181,3387.3,3386.8,7.29]
[1722253518545,3.0,3387.4,3386.6,3.3235]
[1722253518699,3.0,3387.4,3386.7,2.4654]
[1722253518900,5.36162,3387.5,3386.7,2.4654]
[1722253519255,4.91726999,3387.7,3387.3,1.069]
[1722253519256,2.55576999,3387.7,3387.3,1.069]
[1722253519418,2.55576999,3388.3,3387.5,1.069]
[1722253519759,2.55576999,3388.4,3387.5,1.069]
[1722253519912,6.03007154,3388.5,3387.5,1.069]
[1722253520120,0.63387458,3388.4,3387.5,1.069]
[1722253520746,2.36106,3388.3,3387.5,1.069]
[1722253522230,5.36106,3388.3,3387.5,1.069]
[1722253523147,2.36114,3388.2,3387.5,1.069]
[1722253523448,5.36114,3388.2,3387.5,1.069]
[1722253523659,2.36114,3388.2,3387.5,1.069]
[1722253525161,3.0,3388.3,3387.5,1.069]
[1722253525301,0.63387458,3388.4,3387.5,2.15734352]
[1722253525302,3.63387458,3388.4,3387.5,2.15734352]
[1722253527217,5.99487458,3388.4,3387.5,1.069]
[1722253527566,3.43006,3388.3,3387.4,2.52443516]
[1722253527759,3.0,3388.2,3387.4,2.52443516]
[1722253529626,1.069,3388.3,3387.4,2.52443516]
[1722253529817,1.069,3388.3,3387.4,3.84896068]
[1722253530022,5.99486458,3388.4,3387.4,3.84896068]
[1722253530267,5.99486458,3388.4,3387.4,2.52443516]
[1722253531368,3.0,3388.4,3387.9,1.069]
[1722253531570,0.30867429,3388.7,3387.9,1.069]
[1722253531767,2.36067,3388.9,3388.1,2.328]
[1722253531921,0.95838456,3388.8,3388.1,2.328]
[1722253532263,3.31910456,3388.8,3388.1,2.328]
[1722253532641,0.95838456,3388.8,3388.1,2.328]
[1722253533578,3.95838456,3388.8,3388.1,2.328]
[1722253533940,0.73880446,3388.7,3388.1,2.328]
[1722253534986,3.95838456,3388.8,3388.1,2.328]
[1722253535139,0.95838456,3388.8,3388.1,2.328]
[1722253535538,3.0,3388.9,3388.1,2.328]
[1722253535771,5.36061,3389.0,3388.2,0.0590225]
[1722253536381,3.0,3389.0,3388.2,0.0590225]
[1722253536553,6.42951,3389.1,3388.2,0.0590225]
[1722253536745,2.36057,3389.0,3388.2,0.0590225]
[1722253536945,3.77174371,3389.0,3388.2,0.0590225]
[1722253537146,3.0,3388.9,3388.2,0.0590225]
[1722253537772,4.41117371,3389.0,3388.2,0.0590225]
[1722253538088,6.42951,3389.1,3388.3,2.4845]
[1722253539241,2.3606,3389.0,3388.3,2.4845]
[1722253539456,0.879004,3388.9,3388.3,2.4845]
[1722253539675,3.879004,3388.9,3388.3,2.4845]
[1722253541090,6.239654,3388.9,3388.3,2.4845]
[1722253541291,5.36065,3388.9,3388.3,2.4845]
[1722253541492,2.36065,3388.9,3388.3,2.4845]
[1722253547105,2.36071,3388.8,3388.3,2.4845]
[1722253547308,5.36071,3388.8,3388.3,2.4845]
[1722253547512,2.36071,3388.8,3388.3,2.4845]
[1722253554326,3.239739,3388.8,3388.3,2.4845]
[1722253554530,3.0,3388.7,3388.3,2.4845]
[1722253555829,3.0,3388.7,3388.0,7.29]
[1722253556038,2.3611,3388.3,3388.0,7.29]
[1722253556350,2.3612,3388.1,3387.7,2.4162]
[1722253557313,3.0,3388.2,3387.7,2.4162]
[1722253557510,2.3611,3388.3,3387.7,2.4162]
[1722253557912,2.36124,3388.1,3387.7,2.4162]
[1722253558212,2.36127,3388.0,3387.7,2.4162]
[1722253558408,5.36104,3388.4,3387.7,2.4162]
[1722253558622,2.36106,3388.3,3387.7,2.4162]
[1722253560551,2.36115,3388.2,3387.7,2.4162]
[1722253561108,2.3612,3388.1,3387.7,2.4162]
[1722253562829,2.90487718,3388.2,3387.7,2.4162]
[1722253563010,3.0,3388.5,3387.9,2.2845]
[1722253563434,2.36086,3388.6,3387.9,2.2845]
[1722253563644,3.0,3388.7,3388.0,1.069]
[1722253563947,2.36078,3388.7,3388.1,2.2845]
[1722253564150,5.36078,3388.7,3388.1,2.2845]
[1722253564447,3.0,3388.6,3388.1,2.2845]
[1722253564634,2.36078,3388.7,3388.1,2.2845]
[1722253564822,3.50450428,3388.7,3388.1,2.2845]
[1722253565026,3.0,3388.6,3388.1,2.2845]
[1722253565233,2.36078,3388.7,3388.1,2.2845]
[1722253567957,2.36072,3388.8,3388.1,2.2845]
[1722253570046,2.36081,3388.7,3388.1,2.2845]
[1722253573877,2.36085,3388.6,3388.1,2.2845]
[1722253574078,1.02789276,3388.5,3388.1,2.2845]
[1722253574593,2.36108,3388.3,3387.8,2.484]
[1722253574935,2.36114,3388.2,3387.5,7.29]
[1722253575293,2.36114,3388.2,3387.6,2.484]
[1722253575593,2.3612,3388.1,3387.6,2.484]
[1722253576978,2.36128,3388.0,3387.6,2.484]
[1722253577680,2.36135,3387.9,3387.6,2.484]
[1722253579069,2.36148,3387.7,3387.2,2.2887]
[1722253579280,2.36141,3387.8,3387.2,2.2887]
[1722253580458,5.36138,3387.9,3387.2,2.2887]
[1722253582841,3.0,3387.9,3387.3,1.069]
[1722253583159,3.0,3388.2,3387.4,2.3471]
[1722253583359,3.343002,3388.3,3387.4,2.3471]
[1722253584640,3.0,3388.3,3387.8,2.2546]
[1722253584841,2.36099,3388.4,3387.8,2.2546]
[1722253585047,2.36107,3388.3,3387.8,2.2546]
[1722253585292,0.236107,3388.2,3387.8,2.2546]
[1722253585445,3.0,3388.2,3387.8,2.2546]
[1722253585845,2.36107,3388.3,3387.8,2.2546]
[1722253586060,3.0,3388.4,3387.8,2.2546]
[1722253586261,3.0,3388.5,3387.8,2.2546]
[1722253586690,4.91517762,3388.8,3388.1,2.3785]
[1722253586912,2.36079,3388.7,3388.1,2.3785]
[1722253587912,1.15334818,3388.8,3388.1,2.3785]
[1722253588704,4.15334818,3388.8,3388.1,2.3785]
[1722253590107,3.0,3388.8,3388.1,2.3785]
[1722253590281,5.36069,3388.9,3388.1,2.3785]
[1722253592164,2.36074,3388.8,3388.1,2.3785]
[1722253592398,6.42974,3388.8,3388.1,2.3785]
[1722253592565,7.86425421,3388.8,3388.1,2.3785]
[1722253593367,6.42974,3388.8,3388.1,2.3785]
[1722253594985,5.36074,3388.8,3388.1,2.3785]
[1722253595317,3.0,3388.7,3388.1,2.3785]
[1722253595514,2.36074,3388.8,3388.1,2.3785]
[1722253597877,3.0,3388.9,3388.1,2.3785]
[1722253598073,6.52119351,3388.9,3388.1,2.3785]
[1722253600923,2.36072,3388.8,3388.1,2.3785]
[1722253602694,4.16053351,3388.9,3388.1,2.43752421]
[1722253602892,6.52119351,3388.9,3388.1,2.43752421]
[1722253605429,2.36072,3388.8,3388.1,2.3785]
[1722253605595,3.11973935,3388.8,3388.1,2.3785]
[1722253605787,3.0,3388.7,3388.1,2.3785]
[1722253606227,3.0,3388.7,3388.1,2.2285]
[1722253608508,5.36079,3388.7,3388.1,2.2285]
[1722253608723,0.96410029,3388.6,3388.1,2.2285]
[1722253614061,0.96410029,3388.6,3388.1,2.2875239]
[1722253614197,5.36072,3388.8,3388.1,2.2875239]
[1722253615834,3.0,3388.7,3388.1,2.2875239]
[1722253616054,2.36072,3388.8,3388.1,2.2875239]
[1722253616229,5.36062,3389.0,3388.1,2.2875239]
[1722253616427,1.39662753,3388.9,3388.1,2.2875239]
[1722253616753,3.75726753,3388.9,3388.1,2.2875239]
[1722253616958,3.0,3388.8,3388.1,2.2875239]
[1722253621520,5.36064,3388.9,3388.1,2.2875239]
[1722253623572,3.0,3388.9,3388.2,1.069]
[1722253623740,2.36002,3389.8,3387.5,7.29]
[1722253623741,2.3603,3389.4,3388.7,2.4292]
[1722253623936,2.3603,3389.4,3388.8,1.069]
[1722253624261,2.3603,3389.4,3388.9,2.4292]
[1722253625361,5.36018,3389.6,3388.9,2.4292]
[1722253625573,2.36038,3389.3,3388.9,2.4292]
[1722253625747,2.36065,3388.9,3388.6,2.4937]
[1722253626154,1.069,3389.1,3388.6,2.4937]
[1722253626155,3.42955,3389.1,3388.6,2.4937]
[1722253626541,2.36059,3389.0,3388.6,2.4937]
[1722253628344,2.36064,3388.9,3388.6,2.4937]
[1722253628682,0.39337677,3388.8,3388.6,2.4937]
[1722253629937,2.36058,3389.0,3388.6,2.4937]
[1722253630141,5.36058,3389.0,3388.6,2.4937]
[1722253630768,2.36064,3388.9,3388.6,2.4937]
[1722253631985,3.0,3389.0,3388.6,2.4937]
[1722253632355,2.36064,3388.9,3388.6,2.4937]
[1722253632554,3.73150187,3388.9,3388.6,2.4937]
[1722253632960,1.37086187,3388.9,3388.6,2.4937]
[1722253636251,5.36057,3389.0,3388.6,2.4937]
[1722253637511,3.0,3389.0,3388.6,2.4937]
[1722253637787,2.36052,3389.1,3388.6,2.4937]
[1722253639498,4.9199766,3389.1,3388.6,2.4937]
[1722253639701,4.02803766,3389.0,3388.6,2.4937]
[1722253642492,3.0,3389.0,3388.6,2.4937]
[1722253642655,5.5594566,3389.1,3388.6,2.4937]
[1722253642853,5.55955189,3389.1,3388.6,2.4937]
[1722253643389,5.36051,3389.1,3388.6,2.4937]
[1722253643591,6.10465632,3389.1,3388.6,2.4937]
[1722253643889,3.0,3389.0,3388.6,2.4937]
[1722253644258,5.36058,3389.0,3388.6,2.4937]
[1722253644460,3.0,3389.0,3388.6,2.4937]
[1722253644866,5.36058,3389.0,3388.6,2.4937]
[1722253645073,1.14652363,3388.9,3388.6,2.4937]
[1722253646402,5.36058,3389.0,3388.6,2.4937]
[1722253650609,2.36069,3388.9,3388.6,2.4937]
[1722253650767,2.36069,3388.9,3388.4,9.6259]
[1722253650967,5.36058,3389.0,3388.4,9.6259]
[1722253652388,5.36058,3389.0,3388.4,2.3359]
[1722253652890,3.7440178,3389.1,3388.4,2.3359]
[1722253653067,2.36044,3389.2,3388.5,1.069]
[1722253653267,5.36044,3389.2,3388.6,2.2771]
[1722253654088,2.36051,3389.1,3388.6,2.2771]
[1722253654289,2.36058,3389.0,3388.6,2.2771]
[1722253654592,3.79551664,3389.0,3388.6,2.2771]
[1722253655534,3.79551664,3389.0,3388.1,12.12]
[1722253655535,2.36094,3388.5,3388.1,12.12]
[1722253655746,2.36094,3388.5,3387.8,2.2915]
[1722253655747,2.36113,3388.2,3387.8,2.2915]
[1722253656095,4.72204,3388.4,3387.8,2.2915]
[1722253656417,3.1960817,3388.3,3387.8,2.2915]
[1722253658723,2.3612,3388.1,3387.8,2.2915]
[1722253658924,2.36141,3387.8,3387.7,7.29]
[1722253659195,2.36141,3387.8,3387.3,12.12]
[1722253659196,2.36141,3387.8,3387.3,2.3791]
[1722253659635,2.36134,3387.9,3387.3,2.3791]
[1722253659636,2.36148,3387.7,3387.3,2.3791]
[1722253660431,3.0,3387.8,3387.3,2.3791]
[1722253660598,3.0,3387.9,3387.3,2.3791]
[1722253660804,5.36123,3388.1,3387.3,2.3791]
[1722253661145,1.06764698,3388.0,3387.3,2.3791]
[1722253661345,4.06764698,3388.0,3387.3,2.3791]
[1722253662364,6.42891698,3388.0,3387.3,2.3791]
[1722253662647,3.0,3388.0,3387.5,2.2567]
[1722253662949,3.0,3388.3,3387.5,2.2567]
[1722253663240,5.36106,3388.3,3387.5,2.2567]
[1722253663398,1.115203,3388.2,3387.5,2.2567]
[1722253663905,5.36106,3388.3,3387.7,2.3322]
[1722253663906,3.0,3388.3,3387.7,2.3322]
[1722253664103,3.0,3388.4,3387.7,2.39123316]
[1722253664307,2.36077,3388.8,3388.0,1.069]
[1722253664502,1.21741297,3388.7,3388.0,1.069]
[1722253664708,2.36084,3388.7,3387.9,2.39122721]
[1722253665734,2.36093,3388.5,3387.9,2.39122721]
[1722253666255,3.0,3388.6,3387.9,2.39122721]
[1722253666609,5.36083,3388.7,3387.9,2.39122721]
[1722253666809,6.7347374,3388.7,3387.9,2.39122721]
[1722253667241,2.36087,3388.6,3387.9,2.39122721]
[1722253667549,5.36087,3388.6,3387.9,2.39122721]
[1722253668136,2.36092,3388.5,3387.9,2.39122721]
[1722253668339,5.36092,3388.5,3387.9,2.3322]
[1722253668543,2.36092,3388.5,3387.9,2.3322]
[1722253668745,2.36099,3388.4,3387.9,2.3322]
[1722253668956,6.42999,3388.4,3387.8,7.29]
[1722253669131,2.36118,3388.2,3387.8,7.29]
[1722253669830,2.36106,3388.3,3387.8,7.29]
[1722253670161,2.36106,3388.3,3387.6,2.4319]
[1722253670859,3.0,3388.4,3387.7,2.3086]
[1722253671062,5.36097,3388.5,3387.7,2.3086]
[1722253672119,5.36097,3388.5,3387.8,0.05903246]
[1722253672319,2.36107,3388.3,3387.7,2.3086]
[1722253672544,3.133334,3388.2,3387.7,2.3086]
[1722253673120,2.36113,3388.2,3387.7,2.3086]
[1722253673932,3.43013,3388.2,3387.4,21.8079]
[1722253674150,3.43032,3388.0,3387.4,21.8079]
[1722253674455,0.643032,3387.9,3387.4,2.3979]
[1722253674821,2.36143,3387.8,3387.4,2.3979]
[1722253675460,1.069,3388.0,3387.4,2.3979]
[1722253676561,2.36134,3387.9,3387.4,2.3979]
[1722253676938,2.36142,3387.8,3387.4,2.3979]
[1722253679464,2.36163,3387.5,3387.1,9.6689]
[1722253680565,1.069,3387.6,3387.1,9.6689]
[1722253680925,3.43056,3387.6,3387.1,9.6689]
[1722253683666,2.36156,3387.6,3387.1,9.6689]
[1722253684169,2.36162,3387.5,3387.1,9.6689]
[1722253684536,0.95517699,3387.6,3387.1,9.6689]
[1722253684727,3.31672699,3387.6,3387.1,9.6689]
[1722253685162,3.31672699,3387.6,3387.1,2.3789]
[1722253686564,2.36155,3387.6,3387.1,2.3789]
[1722253686777,2.36162,3387.5,3386.8,2.3064]
[1722253687076,2.36155,3387.6,3386.8,2.3064]
[1722253687232,2.36163,3387.5,3386.8,2.3064]
[1722253690756,2.36169,3387.4,3386.8,2.3064]
[1722253690958,3.43061,3387.6,3386.8,2.3064]
[1722253691357,2.36161,3387.6,3386.8,2.3064]
[1722253691555,3.0,3387.7,3387.0,1.069]